Cogmind - Beta 13 @@@ ROGUE MODE // 2024.04.23 @ 19:49:35 Player: sick0r Result: Destroyed by K0-MTW(z) with Makeshift Axe Performance ------------- Evolutions (3) 1500 Regions Visited (11) 2200 Robots Destroyed (122) 610 Value Destroyed (3395) 3395 Prototype IDs (25) 500 Alien Tech Used (0) 0 Bonus (1404) 1404 TOTAL SCORE: 9609 Bonus ------- High Alert Combat Kills 154 Follower Combat Kills 1282 Aligned with FarCom 300 Met Imprinter 300 Friendly Fire -632 Cogmind --------- Core Integrity 0/700 Matter 49/300 Energy 100/100 System Corruption 2% Temperature Cool (0) Movement Core (2450) Ox48 Location -7/Zion Parts ------- > --- POWER (2) -------- (None) > --- PROPULSION (4) --- (None) > --- UTILITY (5) ------ Cargo Storage Unit Launcher Guidance Computer Microactuators System Shield > --- WEAPON (2) ------- Heavy Battle Rifle > --- INVENTORY (30) --- Neutrino Core Advanced Treads Heavy Treads Improved Cooling System High-capacity Storage Unit Large Matter Pod (150) Matter Filter Improved Power Shielding Improved Utility Shielding Improved Weapon Shielding Hardened Light Armor Plating Hardened Medium Armor Plating Improved Light Armor Plating Hardlight Generator System Restoration Module Field Recycling Unit (0) Bomb Factory No. 2 Enhanced Gauss Cannon Dirty Datajack (20) Ripper Ripper Makeshift Spear GAL Module Peak State ------------ > --- POWER ------------ Reinforced Deuterium Engine Neutrino Core > --- PROPULSION ------- Advanced Treads Advanced Treads Armored Huge Wheel > --- UTILITY ---------- Cargo Storage Unit Advanced Targeting Computer Launcher Guidance Computer System Shield > --- WEAPON ----------- Bore Cannon Enhanced Gauss Cannon > --- INVENTORY -------- Improved Deuterium Engine Neutrino Core Heavy Treads Improved Cooling System High-capacity Storage Unit Large Matter Pod Matter Filter Microactuators Improved Power Shielding Improved Utility Shielding Improved Weapon Shielding Hardened Light Armor Plating Hardened Medium Armor Plating Improved Light Armor Plating Hardlight Generator System Restoration Module Field Recycling Unit Bomb Factory No. 2 Heavy Battle Rifle Makeshift Shrapnel Gun Bore Cannon Heavy Rocket Launcher Heavy Rocket Launcher Dirty Datajack Ripper Ripper Makeshift Spear GAL Module [Rating: 59] Favorites ----------- Power Ion Engine Engine Ion Engine Power Core Light Nuclear Core Propulsion Advanced Treads Treads Advanced Treads Leg Aluminum Leg Wheel Wheel Hover Unit Backup Propulsion III Utility Cargo Storage Unit Device Improved Cooling System Storage Cargo Storage Unit Processor Launcher Guidance Computer Hackware System Shield Protection Hardened Light Armor Plating Weapon Backup Laser III Energy Gun Backup Laser III Energy Cannon Latent Energy Streamer Ballistic Gun Assault Rifle Ballistic Cannon Enhanced Gauss Cannon Launcher Improved Grenade Launcher Impact Weapon Heavy Flail Slashing Weapon Katana Piercing Weapon Makeshift Spear Special Melee Weapon Dirty Datajack Build | -11 -10 -10 -10 -9 -8 -7 -7 -7 -7 -7 -7 ------- Run | Yrd Mat Min Exi Min Mat Fac Was Fac Low Low Zio Slots Evolved 6 | . . . . . 4 2 . . . . . Power 1 | . . . . . 1 . . . . . . Propulsion 2 | . . . . . 1 1 . . . . . Utility 3 | . . . . . 2 1 . . . . . Weapon . | . . . . . . . . . . . . Parts Attached 162 | 7 12 . 6 8 54 14 25 10 4 9 13 Power 19 | 1 2 . . . 5 1 3 2 1 3 1 Engine 17 | 1 2 . . . 5 1 3 1 1 2 1 Core 2 | . . . . . . . . 1 . 1 . Reactor . | . . . . . . . . . . . . Propulsion 35 | 3 1 . . 3 16 3 6 3 . . . Treads 8 | 1 . . . . 4 . 1 2 . . . Leg 4 | 2 1 . . . . . 1 . . . . Wheel 23 | . . . . 3 12 3 4 1 . . . Hover . | . . . . . . . . . . . . Flight . | . . . . . . . . . . . . Utility 25 | 1 1 . . 1 11 1 3 3 . 1 3 Device 4 | . . . . . 1 . . 2 . . 1 Storage 6 | 1 1 . . . 2 . 2 . . . . Processor 4 | . . . . . 2 . . . . 1 1 Hackware 3 | . . . . . 2 1 . . . . . Protection 8 | . . . . 1 4 . 1 1 . . 1 Artifact . | . . . . . . . . . . . . Weapon 83 | 2 8 . 6 4 22 9 13 2 3 5 9 Energy Gun 3 | . . . 1 . 2 . . . . . . Energy Cannon 5 | . . . 2 2 . . 1 . . . . Ballistic Gun 27 | 2 5 . 2 2 6 3 4 1 . . 2 Ballistic Cannon 13 | . . . . . 4 . 1 1 1 3 3 Launcher 12 | . 2 . . . 4 2 2 . . . 2 Special Weapon . | . . . . . . . . . . . . Impact Weapon 11 | . . . . . 4 3 4 . . . . Slashing Weapon 6 | . . . 1 . 2 1 1 . . . 1 Piercing Weapon 1 | . . . . . . . . . . . 1 Special Melee Weapon 5 | . 1 . . . . . . . 2 2 . Unidentified Prototypes 5 | . . . 3 . 2 . . . . . . Parts Lost 50 | . 1 . . 1 18 . 17 1 . 2 10 Power 8 | . . . . . 2 . 2 . . 1 3 Propulsion 19 | . . . . 1 9 . 7 . . . 2 Utility 6 | . . . . . 3 . 1 1 . . 1 Weapon 17 | . 1 . . . 4 . 7 . . 1 4 Highest Loss Streak 10 | . 1 . . 1 5 . 10 1 . 1 8 To Critical Strikes 1 | . . . . . . . 1 . . . . Average Slot Usage (%) 83 | . 84 85 84 85 88 92 69 83 84 83 81 Engine 12 | . 14 14 14 14 17 15 14 12 7 6 6 Core 2 | . . . . . . . . 2 7 7 6 Treads 6 | . . . . . 8 . . 13 15 15 13 Leg 5 | . 28 28 28 5 . . . . . . . Wheel 9 | . . . . 22 17 30 2 2 7 7 6 Hover 1 | . . . . . . . 11 9 . . . Device 1 | . . . . . 1 . . 3 7 . . Storage 9 | . 14 14 14 14 9 7 6 7 7 7 7 Processor 2 | . . . . . 3 7 . . . 6 10 Hackware 5 | . . . . . 2 15 15 12 7 7 7 Protection 4 | . . . . . 10 . . 2 7 7 3 Energy Gun 2 | . . . . . 1 . 11 5 . 1 3 Ballistic Gun 8 | . 26 28 27 27 5 2 . 2 1 . . Ballistic Cannon 3 | . . . . . 3 1 . 6 10 7 8 Impact Weapon 1 | . . . . . 3 5 1 . . . . Naked Turns . | . . . . . . . . . . . . Heaviest Build 187 | 11 30 28 37 29 167 160 171 174 174 185 187 Greatest Support 62 | 10 20 20 20 26 62 42 42 44 28 28 28 Greatest Overweight (x) 54 | 1 2 1 1 2 16 3 46 9 6 6 54 Average Overweight (x) 4 | . 1 1 1 1 4 3 9 4 5 5 6 Largest Inventory Capacity 30 | 8 15 15 15 15 30 30 30 30 30 30 30 Average Capacity 25 | 7 14 15 15 15 29 30 29 30 30 30 30 Most Carried 30 | 8 15 15 15 15 30 30 30 28 29 30 30 Average Carried 20 | 5 11 15 14 13 17 28 18 24 27 29 29 Final Capacity 30 | 8 15 15 15 15 30 30 30 30 30 30 30 Final Carried 30 | 6 15 15 15 14 29 30 23 25 29 30 25 Class Distribution -------------------- 71% | Hauler-Mutant 26% | Mutant Dominant Class ---------------- Mutant | -10/Materials Mutant | -10/Mines Mutant | -10/Exiles Mutant | -9/Mines Hauler-Mutant | -8/Materials Hauler-Mutant | -7/Factory Hauler-Mutant | -7/Waste Hauler-Mutant | -7/Factory Hauler-Mutant | -7/Lower Caves Hauler-Mutant | -7/Lower Caves Hauler-Mutant | -7/Zion Resources | -11 -10 -10 -10 -9 -8 -7 -7 -7 -7 -7 -7 ----------- Run | Yrd Mat Min Exi Min Mat Fac Was Fac Low Low Zio Matter Collected 3815 | 236 444 . . 197 1122 372 832 213 64 183 152 Remotely . | . . . . . . . . . . . . Salvage Created 4112 | . 723 . . 131 1810 378 651 132 . 57 230 Parts 186 | . 34 . . 9 101 20 . 11 . 1 10 Haulers Intercepted . | . . . . . . . . . . . . Recyclers Shooed 3 | . 1 . . . 1 1 . . . . . Parts Field Recycled . | . . . . . . . . . . . . Retrieved Matter . | . . . . . . . . . . . . Parts Self-Destructed 22 | . . . . . . . . . 8 14 . Prevented . | . . . . . . . . . . . . Kills | -11 -10 -10 -10 -9 -8 -7 -7 -7 -7 -7 -7 ------- Run | Yrd Mat Min Exi Min Mat Fac Was Fac Low Low Zio Combat Hostiles Destroyed 68 | . 10 . . 4 38 5 3 3 . . 5 Melee 5 | . . . . . 5 . . . . . . Guns 32 | . 8 . . 4 18 . 1 1 . . . Cannons 9 | . . . . . 5 . . 2 . . 2 AOE 21 | . 2 . . . 10 4 2 . . . 3 Classes Destroyed 16 | . 5 . . 2 6 . 1 . . . 2 Worker 18 | . 4 . . . 6 8 . . . . . Builder 7 | . . . . . 4 3 . . . . . Tunneler 2 | . . . . . 1 . . 1 . . . Recycler 5 | . 2 . . . 2 1 . . . . . Operator 5 | . 2 . . . 1 1 . 1 . . . Watcher 6 | . 2 . . . 4 . . . . . . Swarmer 9 | . . . . 2 3 4 . . . . . Grunt 35 | . 10 . . 1 22 . . 2 . . . Brawler 3 | . . . . 1 . . . 1 . 1 . Duelist 1 | . . . . . 1 . . . . . . Sentry 10 | . . . . . 10 . . . . . . Specialist 2 | . . . . . 2 . . . . . . Hunter 2 | . . . . . 1 1 . . . . . Compactor 3 | . . . . . . . 3 . . . . Zionite 8 | . . . . . . . . . . . 8 Thug 1 | . . . . . . . . . . . 1 Butcher 1 | . . . . . . . . . . . 1 Mutant 4 | . . . . . . . . . . . 4 Best Kill Streak 7 | . 4 . . 2 7 5 1 3 . . 7 Combat Bots Only 6 | . 2 . . 2 6 4 1 2 . . 4 Max Kills in Single Turn 4 | . 1 . . 1 4 4 1 2 . 1 2 Gunslinging 1 | . . . . . 1 . . . . . . Exploded 4 | . 1 . . . 4 4 1 . . . 1 Melee 1 | . . . . . 1 . . . . . . Uniques/NPCs Destroyed . | . . . . . . . . . . . . Combat | -11 -10 -10 -10 -9 -8 -7 -7 -7 -7 -7 -7 -------- Run | Yrd Mat Min Exi Min Mat Fac Was Fac Low Low Zio Hostile Shots Fired 454 | . 42 . . 22 176 12 13 1 4 28 156 Missed 119 | . 11 . . 5 38 6 . . 2 11 46 Damage Taken 6528 | . 487 . . 177 2330 108 1106 54 68 321 1877 Core 1237 | . 96 . . 51 353 19 278 . . 17 423 Absorbed by Shields 24 | . . . . . 24 . . . . . . Redirected to Shielding 112 | . . . . . 75 . 37 . . . . Regen/Repaired (Parts) 401 | . . . . . 78 28 21 80 9 32 153 Core Remaining (%) 58 | 100 . . . 41 35 . . . . . . Volleys Fired 271 | . 67 . . 11 111 2 37 8 2 9 24 Largest 2 | . 2 . . 2 2 2 2 2 2 2 2 Hottest 114 | . 50 . . 80 88 69 69 90 114 114 114 Shots Fired 499 | . 134 . . 22 198 3 64 13 4 18 43 Gun 364 | . 131 . . 20 157 . 32 4 1 4 15 Cannon 84 | . . . . 2 28 . 10 9 3 14 18 Launcher 51 | . 3 . . . 13 3 22 . . . 10 Special . | . . . . . . . . . . . . Kinetic 393 | . 131 . . 20 141 . 37 13 4 14 33 Thermal 50 | . . . . . 44 . 2 . . 4 . Explosive 51 | . 3 . . . 13 3 22 . . . 10 Electromagnetic 5 | . . . . 2 . . 3 . . . . Robot Hit Streak 12 | . 8 . . 5 9 3 12 4 3 3 7 Robot Miss Streak 8 | . 6 . . 3 8 1 6 2 1 4 3 Penetration Max 1 | . . . . . . . . . . . 1 Secondary Targets 5 | . 1 . . 1 2 . . . . . 1 Max Gunslinging Chain 1 | . 1 . . 1 1 . . . . . 1 Shots Hit Robots 382 | . 79 . . 13 156 20 56 7 6 11 34 Core Hits 219 | . 39 . . 7 114 10 17 7 1 5 19 Critical Kills 4 | . . . . . . 2 . . . . 2 Critical Parts Destroyed 11 | . . . . . 2 5 1 . 1 2 . Critical Strikes 23 | . . . . . 7 7 1 . 1 5 2 Burn 4 | . . . . . 4 . . . . . . Destroy 6 | . . . . . 1 . . . 1 2 2 Blast 3 | . . . . . . . . . . 3 . Smash 9 | . . . . . 1 7 1 . . . . Sever 1 | . . . . . 1 . . . . . . Melee Attacks 81 | . . . . . 40 26 7 . 3 2 3 Impact 44 | . . . . . 14 23 7 . . . . Slashing 32 | . . . . . 26 3 . . . . 3 Piercing 2 | . . . . . . . . . . 2 . Sneak Attacks 19 | . . . . . 1 15 . . 1 2 . Combat Hostiles . | . . . . . . . . . . . . Follow-up Attacks 7 | . . . . . 4 1 2 . . . . Damage Inflicted 12806 | . 1017 . . 214 4345 1866 3117 369 72 343 1463 Guns 3317 | . 843 . . 129 1758 . 413 40 18 26 90 Cannons 1567 | . . . . 6 390 . 194 242 54 305 376 Explosions 5164 | . 174 . . 79 1545 219 2162 87 . . 898 Melee 2758 | . . . . . 652 1647 348 . . 12 99 Ramming . | . . . . . . . . . . . . Kinetic 4269 | . 843 . . 129 1579 . 593 282 72 305 466 Thermal 609 | . . . . . 569 . 14 . . 26 . Explosive 5085 | . 174 . . . 1545 219 2162 87 . . 898 Electromagnetic 85 | . . . . 85 . . . . . . . Impact 2081 | . . . . . 144 1589 348 . . . . Slashing 665 | . . . . . 508 58 . . . . 99 Piercing 12 | . . . . . . . . . . 12 . Highest Corruption 6 | . . . . 2 . . 6 6 . . 2 Average Corruption 4 | . . . . 1 . . 5 5 . . 1 Corruption Purged 6 | . . . . . . . . 6 . . . Corruption Blocked . | . . . . . . . . . . . . Effects 66 | . . . . 12 . . 40 12 . . 2 Message Errors 16 | . . . . 3 . . 8 4 . . 1 Matter Fused 16 | . . . . 2 . . 12 2 . . . Heat Flow Errors 6 | . . . . 1 . . 3 2 . . . Energy Discharges 8 | . . . . 2 . . 4 2 . . . Parts Fused 1 | . . . . . . . 1 . . . . Data Loss (minor) 9 | . . . . 3 . . 5 1 . . . Data Loss (major) 3 | . . . . 1 . . 2 . . . . Misfires 3 | . . . . . . . 2 1 . . . Alerts 3 | . . . . . . . 3 . . . . Weapon Failures 1 | . . . . . . . . . . . 1 Overload Shots . | . . . . . . . . . . . . Overflow Damage 990 | . . . . . 163 666 124 20 . . 17 Projectiles 20 | . . . . . . . . 20 . . . Explosions 153 | . . . . . 45 . 91 . . . 17 Melee 817 | . . . . . 118 666 33 . . . . Knockbacks 33 | . . . . . 21 5 . 2 1 2 2 Impact 6 | . . . . . 1 5 . . . . . Kinetic 25 | . . . . . 18 . . 2 1 2 2 Secondary 2 | . . . . . 2 . . . . . . Self-Inflicted Damage 786 | . 88 . . . 178 . 446 . . . 74 Shots 24 | . 3 . . . 4 . 12 . . . 5 Rammed . | . . . . . . . . . . . . Targets Rammed . | . . . . . . . . . . . . Kicked . | . . . . . . . . . . . . Crushed . | . . . . . . . . . . . . Highest Temperature 360 | . 25 . . 123 360 . 192 268 . 355 318 Average Temperature 92 | . 8 . . 30 112 . 28 94 . 120 128 Received Heat Transfer 1412 | . 240 . . 24 884 . . 27 . 99 138 Effects 5 | . . . . . 4 . . . . . 1 Shutdowns 2 | . . . . . 1 . . . . . 1 Interference 2 | . . . . . 2 . . . . . . Damage (minor) 1 | . . . . . 1 . . . . . . Siege Activations . | . . . . . . . . . . . . Robots Corrupted . | . . . . . . . . . . . . Combat Hostiles . | . . . . . . . . . . . . Parts Fried 8 | . . . . . 3 5 . . . . . Impact Corruptions 24 | . . . . . 3 20 1 . . . . Robots Melted . | . . . . . . . . . . . . Combat Hostiles . | . . . . . . . . . . . . Parts Melted 3 | . . . . . 2 . . . . . 1 Heat Transferred 1665 | . . . . . 1554 . 37 . . 74 . Parts Sabotaged . | . . . . . . . . . . . . Parts Stolen . | . . . . . . . . . . . . Parts Stripped . | . . . . . . . . . . . . Power Chain Reactions . | . . . . . . . . . . . . Latent Energy Used 203 | . . . . 117 . . 86 . . . . LE Corruption 6 | . . . . 2 . . 4 . . . . Alert | -11 -10 -10 -10 -9 -8 -7 -7 -7 -7 -7 -7 ------- Run | Yrd Mat Min Exi Min Mat Fac Was Fac Low Low Zio Peak Influence 891 | . 157 61 . 118 704 488 147 891 . . . Initial 308 | . . 61 . . . 308 124 . . . . Average 169 | . 42 61 . 31 329 365 21 159 . . . Maximum Alert Level 3 | . . . . . 3 2 . 3 . . . Low Security (%) 64 | 100 100 100 . 100 22 . 100 76 . . . Level 1 22 | . . . . . 47 62 . 11 . . . Level 2 13 | . . . . . 29 37 . 9 . . . Level 3 . | . . . . . . . . 2 . . . Level 4 . | . . . . . . . . . . . . Level 5 . | . . . . . . . . . . . . High Security . | . . . . . . . . . . . . Max Security . | . . . . . . . . . . . . Squads Dispatched 22 | . 3 . . . 9 4 . 5 . 1 . Investigation 5 | . 1 . . . 1 1 . 2 . . . Extermination 2 | . . . . . . 1 . 1 . . . Reinforcement 11 | . 2 . . . 5 2 . 2 . . . Assault 1 | . . . . . . . . . . 1 . Garrison 3 | . . . . . 3 . . . . . . Intercept . | . . . . . . . . . . . . Searches Triggered . | . . . . . . . . . . . . Construction Impeded 3 | . . . . . 1 1 . 1 . . . Haulers Reinforced . | . . . . . . . . . . . . Active Scanning Responses . | . . . . . . . . . . . . Cargo Convoy Interrupts . | . . . . . . . . . . . . Stealth | -11 -10 -10 -10 -9 -8 -7 -7 -7 -7 -7 -7 --------- Run | Yrd Mat Min Exi Min Mat Fac Was Fac Low Low Zio Distress Signals 3 | . . . . . 2 1 . . . . . Communications Jammed . | . . . . . . . . . . . . Distress Signals . | . . . . . . . . . . . . Times Spotted 162 | . 25 . . 6 58 7 7 17 5 14 23 Peak Tracking Total 8 | . 2 . . 4 8 4 2 4 5 7 8 Tactical Retreats 14 | . . . . . 2 1 2 . . 3 6 Traps | -11 -10 -10 -10 -9 -8 -7 -7 -7 -7 -7 -7 ------- Run | Yrd Mat Min Exi Min Mat Fac Was Fac Low Low Zio Traps Triggered 6 | . 2 . . . 2 2 . . . . . Indirectly . | . . . . . . . . . . . . Trap Hack Attempts 17 | . 17 . . . . . . . . . . Triggered 1 | . 1 . . . . . . . . . . Disarmed 1 | . 1 . . . . . . . . . . Reprogrammed . | . . . . . . . . . . . . Reused . | . . . . . . . . . . . . Traps Extracted . | . . . . . . . . . . . . Installed . | . . . . . . . . . . . . Triggered . | . . . . . . . . . . . . Machines | -11 -10 -10 -10 -9 -8 -7 -7 -7 -7 -7 -7 ---------- Run | Yrd Mat Min Exi Min Mat Fac Was Fac Low Low Zio Machines Disabled 15 | . . . . . 3 . . 9 1 1 1 Max in Single Turn 4 | . . . . . 2 . . 4 . . 1 Garrison Access 1 | . . . . . 1 . . . . . . Machines Repaired . | . . . . . . . . . . . . Machines Dismantled . | . . . . . . . . . . . . Machines Sabotaged . | . . . . . . . . . . . . Overloaded Fab Kills . | . . . . . . . . . . . . Hacking | -11 -10 -10 -10 -9 -8 -7 -7 -7 -7 -7 -7 --------- Run | Yrd Mat Min Exi Min Mat Fac Was Fac Low Low Zio Machines Accessed 26 | . 4 . 5 1 13 1 . 1 . 1 . Terminals 14 | . 4 . . 1 9 . . . . . . Fabricators 1 | . . . . . . . . 1 . . . Repair Stations 3 | . . . . . 2 1 . . . . . Recycling Units . | . . . . . . . . . . . . Scanalyzers 1 | . . . . . 1 . . . . . . Garrison Access 1 | . . . . . 1 . . . . . . Total Hacks 112 | . 12 . 50 1 42 3 . 3 . 1 . Successful 78 | . 4 . 50 . 20 2 . 1 . 1 . Failed 34 | . 8 . . 1 22 1 . 2 . . . Catastrophic 9 | . 2 . . . 7 . . . . . . Database Lockouts . | . . . . . . . . . . . . Manual 21 | . 6 . 1 1 13 . . . . . . Terminals 39 | . 12 . . 1 26 . . . . . . Fabricators 3 | . . . . . . . . 3 . . . Repair Stations 9 | . . . . . 6 3 . . . . . Recycling Units . | . . . . . . . . . . . . Scanalyzers 9 | . . . . . 9 . . . . . . Garrison Access 1 | . . . . . 1 . . . . . . Terminal Hacks 63 | . 4 . 50 . 8 . . . . 1 . Record 51 | . . . 49 . 2 . . . . . . Open Door 1 | . . . . . . . . . . 1 . Branch Access Points 1 | . . . . . 1 . . . . . . Unreport Threat 4 | . 2 . . . 2 . . . . . . Locate Traps 4 | . 1 . . . 3 . . . . . . Zone Layout 1 | . 1 . . . . . . . . . . Derelict Proto ID Bank 1 | . . . 1 . . . . . . . . Fabricator Hacks 1 | . . . . . . . . 1 . . . Load Schematic 1 | . . . . . . . . 1 . . . Repair Station Hacks 5 | . . . . . 3 2 . . . . . Scan Component 3 | . . . . . 2 1 . . . . . Repair 2 | . . . . . 1 1 . . . . . Recycling Unit Hacks . | . . . . . . . . . . . . Scanalyzer 8 | . . . . . 8 . . . . . . Insert Component 3 | . . . . . 3 . . . . . . Analyze 5 | . . . . . 5 . . . . . . Garrison Access Hacks 1 | . . . . . 1 . . . . . . Seal Access 1 | . . . . . 1 . . . . . . Unauthorized Hacks . | . . . . . . . . . . . . Terminals . | . . . . . . . . . . . . Fabricators . | . . . . . . . . . . . . Repair Stations . | . . . . . . . . . . . . Recycling Units . | . . . . . . . . . . . . Scanalyzers . | . . . . . . . . . . . . Garrison Access . | . . . . . . . . . . . . Data Cores Recovered . | . . . . . . . . . . . . Used . | . . . . . . . . . . . . Hacking Detections 17 | . 4 . . 1 10 1 . 1 . . . Full Trace Events 2 | . 1 . . . . . . 1 . . . Feedback Events 1 | . . . . . . . . 1 . . . Hackware Fried 1 | . . . . . . . . 1 . . . Feedback Blocked . | . . . . . . . . . . . . Robot Schematics Acquired . | . . . . . . . . . . . . Robots Built . | . . . . . . . . . . . . Authchips . | . . . . . . . . . . . . Time . | . . . . . . . . . . . . Total Robot Build Rating . | . . . . . . . . . . . . Part Schematics Acquired 3 | . . . . . 3 . . . . . . Parts Built . | . . . . . . . . . . . . Authchips . | . . . . . . . . . . . . Time . | . . . . . . . . . . . . Total Part Build Rating . | . . . . . . . . . . . . Parts Repaired 2 | . . . . . 1 1 . . . . . Time 82 | . . . . . 44 38 . . . . . Parts Recycled . | . . . . . . . . . . . . Recycled Matter . | . . . . . . . . . . . . Retrieved Matter . | . . . . . . . . . . . . Retrieved Components . | . . . . . . . . . . . . Parts Scanalyzed 3 | . . . . . 3 . . . . . . Part Schematics Acquired 3 | . . . . . 3 . . . . . . Parts Damaged . | . . . . . . . . . . . . Bothacking | -11 -10 -10 -10 -9 -8 -7 -7 -7 -7 -7 -7 ------------ Run | Yrd Mat Min Exi Min Mat Fac Was Fac Low Low Zio Used RIF Installer . | . . . . . . . . . . . . Robots Hacked . | . . . . . . . . . . . . Non-combat . | . . . . . . . . . . . . Combat . | . . . . . . . . . . . . Robot Hacks Applied . | . . . . . . . . . . . . Relay Couplers Released . | . . . . . . . . . . . . Fabnet Peak Effective % . | . . . . . . . . . . . . Robots Rewired 2 | . . . . . . . . . 1 1 . Allies Hacked 1 | . . . . . . . . 1 . . . Hacks Repelled . | . . . . . . . . . . . . Allies | -11 -10 -10 -10 -9 -8 -7 -7 -7 -7 -7 -7 -------- Run | Yrd Mat Min Exi Min Mat Fac Was Fac Low Low Zio Total Allies 24 | . . . . 3 . . 19 . 1 1 . Largest Group 18 | . . . . 3 2 . 18 18 9 9 5 Highest-Rated Group 461 | . . . . 40 32 . 461 459 265 262 147 Highest-Rated Ally 35 | . . . . 16 16 . 35 35 35 35 34 Total Orders 1 | . . . . . . . . . . 1 . GUARD 1 | . . . . . . . . . . 1 . Ally Attacks 303 | . . . . 14 14 . 33 117 25 71 29 Total Damage 7010 | . . . . 54 162 . 1203 2264 1099 1591 637 Kills 51 | . . . . 2 1 . 4 21 6 15 2 Allies Corrupted 1 | . . . . . . . . 1 . . . Allies Melted . | . . . . . . . . . . . . Intel | -11 -10 -10 -10 -9 -8 -7 -7 -7 -7 -7 -7 ------- Run | Yrd Mat Min Exi Min Mat Fac Was Fac Low Low Zio Robot Analysis Total . | . . . . . . . . . . . . Derelict Logs Recovered 6 | . . 1 . 2 . . . . 2 . 1 Drone Launches . | . . . . . . . . . . . . Drone Recoveries . | . . . . . . . . . . . . Exploration | -11 -10 -10 -10 -9 -8 -7 -7 -7 -7 -7 -7 ------------- Run | Yrd Mat Min Exi Min Mat Fac Was Fac Low Low Zio Turns Passed 15011 | 68 1598 103 990 1018 3523 545 2025 630 1686 1529 1296 Spaces Moved 6658 | 40 697 55 515 795 1506 299 301 189 856 806 599 Core 33 | 12 . . . . . . 18 . . . 3 Treads 260 | . . . . . 179 . . 81 . . . Legs 1389 | 28 697 55 515 94 . . . . . . . Wheels 4776 | . . . . 701 1327 299 91 100 856 806 596 Hover 200 | . . . . . . . 192 8 . . . Flight . | . . . . . . . . . . . . Fastest Speed 50 | 50 190 190 190 105 86 127 50 175 175 175 190 Average Speed 196 | 125 194 190 190 115 183 127 589 299 183 178 202 Slowest Speed 2750 | 190 260 190 190 260 705 127 2350 796 190 190 2750 Overloaded Moves . | . . . . . . . . . . . . Propulsion Burnouts . | . . . . . . . . . . . . Robots Hopped . | . . . . . . . . . . . . Cave-ins Triggered . | . . . . . . . . . . . . Exploration Rate (%) 63 | 5 95 19 88 99 94 9 95 7 90 78 78 Regions Visited 11 Branch Regions 6 Pre-discovered Areas 3 | . . . 1 . . . . . . . 2 Known Exits Taken 2 | . . . . . 1 . . . 1 . . Unknown Exits Taken 7 | 1 1 1 1 1 . . . 1 . 1 . Scrap Searched 6 | . . . . 1 . . . . 4 . 1 Spaces Dug 17 | . . . . . 13 4 . . . . . Terrain Destroyed 255 | . 15 . . . 112 15 89 1 . 2 21 Melee 17 | . . . . . 13 4 . . . . . Projectile 5 | . . . . . . . . 1 . 2 2 AOE 233 | . 15 . . . 99 11 89 . . . 19 Terrain Rammed . | . . . . . . . . . . . . Walls Destroyed . | . . . . . . . . . . . . Machines Disabled . | . . . . . . . . . . . . Actions | -11 -10 -10 -10 -9 -8 -7 -7 -7 -7 -7 -7 --------- Run | Yrd Mat Min Exi Min Mat Fac Was Fac Low Low Zio Total 7998 | 57 820 54 527 875 2016 416 495 243 964 879 652 Wait 629 | . 6 . . 59 244 64 104 23 96 31 2 Move 6648 | 39 696 54 514 794 1505 299 300 188 855 805 599 Hop . | . . . . . . . . . . . . Pick Up 137 | 11 16 . 2 2 52 8 22 9 4 5 6 Fast Attach 10 | 1 3 . 3 . 1 . 1 . . 1 . Attach 76 | 5 2 . 1 3 26 4 18 7 . 2 8 Detach 3 | . . . . . 2 . . 1 . . . Swap 76 | 1 7 . 2 5 27 10 6 3 4 6 5 Drop 53 | . 6 . 5 1 15 6 2 4 . 9 5 Fire 271 | . 67 . . 11 111 2 37 8 2 9 24 Melee 69 | . . . . . 33 23 5 . 3 2 3 Ram . | . . . . . . . . . . . . Kick . | . . . . . . . . . . . . Crush . | . . . . . . . . . . . . Escape Stasis . | . . . . . . . . . . . . Rewire 9 | . . . . . . . . . . 9 . Trap 17 | . 17 . . . . . . . . . . Miscellaneous . | . . . . . . . . . . . . Route ------- -11/Scrapyard -10/Materials (discovered 4 exits: [*Mat x3] / [*Min]) -10/Mines -10/Exiles (discovered 2 exits: *Min x2) -9/Mines (discovered 2 exits: *Mat x2) -8/Materials (discovered 2 exits: *Fac x2) -7/Factory -7/Waste -7/Factory -7/Lower Caves -7/Lower Caves (discovered 2 exits: [*Fac] / [*Zio]) -7/Zion (discovered 1 exit: [*Pro]) History --------- Turn | Location | Event 12 | -11/Scrapyard | Discovered new exit (range 16) 69 | -11/Scrapyard | Entered Materials 307 | -10/Materials | Build established: Mutant 867 | -10/Materials | Discovered new exit (range 12) 1171 | -10/Materials | Discovered new exit (range 8) 1526 | -10/Materials | Discovered new exit (range 16) 1646 | -10/Materials | Discovered new exit (range 11) 1667 | -10/Materials | Entered Mines 1668 | -10/Mines | Assembled infested the area 1673 | -10/Mines | Learned location of 1 exit from Materials 1759 | -10/Mines | Deemed a non-threat by the Exiles lab entrance 1759 | -10/Mines | Discovered new exit (range 5) 1770 | -10/Mines | Entered Exiles 1805 | -10/Exiles | Discovered new exit (range 15) 1835 | -10/Exiles | Met 8R-AWN 1871 | -10/Exiles | Met EX-HEX 1955 | -10/Exiles | Met EX-DEC 1970 | -10/Exiles | Learned location of Zion (-7) 2047 | -10/Exiles | Visited The Gauntlet 2371 | -10/Exiles | Met EX-BIN 2397 | -10/Exiles | Aligned with FarCom system 2399 | -10/Exiles | Given EX-Vault access code 2443 | -10/Exiles | Opened EX-Vault 2453 | -10/Exiles | Found Prototype Slashing Weapon 2454 | -10/Exiles | Identified Longsword +1 2464 | -10/Exiles | Found Prototype Energy Cannon 2464 | -10/Exiles | Identified Latent Energy Streamer 2478 | -10/Exiles | Found Prototype Energy Gun 2478 | -10/Exiles | Identified AWS/Thermal 2597 | -10/Exiles | Warned to stay clear of 0b10 Research branches 2735 | -10/Exiles | Discovered new exit (range 14) 2760 | -10/Exiles | Left Exiles lab with Latent Energy Streamer 2760 | -10/Exiles | Entered Mines 2773 | -9/Mines | Core integrity fell below 50% 2810 | -9/Mines | Learned Materials interactive machine intel 2827 | -9/Mines | Learned Materials garrison access intel 2827 | -9/Mines | Discovered new exit (range 4) 2869 | -9/Mines | Assisted by bots powering up and referring to "LRC-V3" 3353 | -9/Mines | Discovered new exit (range 7) 3524 | -9/Mines | Received a Rocket Launcher from a helpful Derelict 3778 | -9/Mines | Entered Materials 3778 | -8/Materials | Accompanied by 2 allies 3778 | -8/Materials | Evolved 4 slots: Power x1, Propulsion x1, Utility x2 3779 | -8/Materials | Identified exit to Factory 3780 | -8/Materials | Loaded intel: 19 interactive machine locations 3781 | -8/Materials | Loaded intel: 1 garrison access location 4258 | -8/Materials | Build established: Hauler-Mutant 4528 | -8/Materials | Lost 4 parts (2n1u1w) 6112 | -8/Materials | Core integrity fell below 50% 6149 | -8/Materials | Lost 5 parts (1p1n2u1w) 6783 | -8/Materials | Repaired Imp. Deuterium Engine 7248 | -8/Materials | Discovered exit to Factory (range 8) 7301 | -8/Materials | Entered Factory 7301 | -7/Factory | Evolved 2 slots: Propulsion x1, Utility x1 7723 | -7/Factory | Repaired Imp. Grenade Launcher 7846 | -7/Factory | Sucked down chute 7846 | -7/Factory | Entered Waste 7857 | -7/Waste | Spotted C-40 Crusher 7858 | -7/Waste | Spotted C-40 Crusher 7877 | -7/Waste | Crushed by Compactor (1 part destroyed, 1 dropped) 7880 | -7/Waste | Destroyed C-40 Crusher 7922 | -7/Waste | Spotted C-40 Crusher 7941 | -7/Waste | Destroyed C-40 Crusher 7947 | -7/Waste | Spotted C-40 Crusher 7970 | -7/Waste | Crushed by Compactor (1 part destroyed, 1 dropped) 7972 | -7/Waste | Destroyed C-40 Crusher 7997 | -7/Waste | Crushed by Compactor (1 part destroyed, 2 dropped) 8000 | -7/Waste | Crushed by Compactor (0 parts destroyed, 1 dropped) 8003 | -7/Waste | Crushed by Compactor (1 part destroyed) 8009 | -7/Waste | Crushed by Compactor (1 part destroyed) 8014 | -7/Waste | Spotted C-40 Crusher 8040 | -7/Waste | Lost 10 parts (1p5n4w) 8239 | -7/Waste | Spotted C-40 Crusher 8254 | -7/Waste | Crushed by Compactor (1 part destroyed, 1 dropped) 8257 | -7/Waste | Crushed by Compactor (1 part destroyed, 1 dropped) 8260 | -7/Waste | Crushed by Compactor (0 parts destroyed, 2 dropped) 8263 | -7/Waste | Crushed by Compactor (1 part destroyed) 8266 | -7/Waste | Crushed by Compactor (1 part destroyed) 8269 | -7/Waste | Crushed by Compactor (1 part destroyed) 8275 | -7/Waste | Warlord forces began an assault 8278 | -7/Waste | Allies destroyed C-40 Crusher 8278 | -7/Waste | Allies destroyed C-40 Crusher 8300 | -7/Waste | Lost 5 parts (1p1n3w) 8308 | -7/Waste | Allies destroyed C-40 Crusher 9735 | -7/Waste | Discovered new exit (range 13) 9871 | -7/Waste | Entered Factory 9871 | -7/Factory | Accompanied by 18 allies 10187 | -7/Factory | Lost 3 allies 10330 | -7/Factory | Hacking Suite fried by hacking feedback 10331 | -7/Factory | Discovered new exit (range 15) 10462 | -7/Factory | P-60 Hacker assimilated allied FF-BMS(g) 10482 | -7/Factory | P-60 Hacker assimilated allied RQ-ZXS(g) 10501 | -7/Factory | Entered Lower Caves 10501 | -7/Lower Caves | Accompanied by 9 allies 10516 | -7/Lower Caves | Lost 4 allies 10879 | -7/Lower Caves | Identified exit to Lower Caves 10911 | -7/Lower Caves | Learned Factory trap positions 11090 | -7/Lower Caves | Encountered a Warlord checkpoint 11644 | -7/Lower Caves | Attracted the attention of an 0b10 outpost 12187 | -7/Lower Caves | Entered another Lower Caves area 12187 | -7/Lower Caves | Accompanied by 9 allies 12187 | -7/Lower Caves | Spotted B-75 Beast 12188 | -7/Lower Caves | Encountered a Warlord checkpoint 12199 | -7/Lower Caves | Allies destroyed B-75 Beast 12431 | -7/Lower Caves | Discovered new exit (range 5) 13349 | -7/Lower Caves | Attracted the attention of an 0b10 outpost 13629 | -7/Lower Caves | Discovered new exit (range 10) 13716 | -7/Lower Caves | Entered Zion 13716 | -7/Zion | Accompanied by 5 allies 13832 | -7/Zion | Discovered new exit (range 16) 14306 | -7/Zion | Learned 8 Factory zone layouts 14335 | -7/Zion | Learned location of Data Miner (-6) 14399 | -7/Zion | Found Prototype Device 14513 | -7/Zion | Found GAL Module 14576 | -7/Zion | Given A8's code to call for help 14734 | -7/Zion | Rebuked by Imprinter 14768 | -7/Zion | Attempted to imprint without authorization 14768 | -7/Zion | Attacked by Zionites 14826 | -7/Zion | Lost 4 allies 14901 | -7/Zion | Core integrity fell below 50% 14930 | -7/Zion | Core integrity fell below 20% 14966 | -7/Zion | Lost 8 parts (2p2n1u3w) 15012 | -7/Zion | Destroyed by K0-MTW(z) with Makeshift Axe Last Messages --------------- 14998_ VM-OP3(z) heat short circuits Mak. Leg. K0-MTW(z) bursts out of the Twisted Machinery. 15001_ K0-MTW(z) pulls a Mak. Axe out of the Twisted Machinery. 15001_ Imp. Deuterium Engine destroyed. 15004_ VM-OP3(z) overheating. 15006_ VM-OP3(z) heat spikes uncontrollably. 15006_ VM-OP3(z) overheating. 15007_ VM-OP3(z) heat damages Mak. System Shield. 15007_ VM-OP3(z) overheating. 15008_ VM-OP3(z) heat damages core (-2). 15008_ VM-OP3(z) overheating. 15008_ Hvy. Rocket Launcher destroyed. 15009_ VM-OP3(z) overheating. 15010_ VM-OP3(z) heat short circuits Core Analyzer. 15010_ VM-OP3(z) overheating. 15011_ VM-OP3(z) heat damages Broken Mak. Leg. 15011_ VM-OP3(z) overheating. Map ----- +----------------------------------------------------+ | ????????????????????????? ""????#"" """ | | ?????????????????????????? ?????????##" | | ??????????????????????????????????####" | | ????????????????????????????"""?""#"""" | | ????????????????????????????""" """"""" ""##""" | | ????????????????????????? """ """" """"""" | | ???????????????????????? "" """ " """""##" | | ???????????????????????"" " """##"## | | ???????????????????????"" " """#???? | | ??????????????????????#"" "" " """#???? | | ??????????????????????# " """ ""#####? | | ?????????????????????? """""" """"""#? | | ????????????????????? """""" ""##?? | | ?????????????????????" "" ""#?? | | ?????????????????????" "" ""#?? | | ?????????????????????" """ "" ""#?? | | ????????????????????#" "##""" "" ""#?? | | ????????????????????"" "# """ " ""##?# | | ????????????????????#"""" """""#"# | | ????????????#########"" """""""" | | ?????????"###" """ " [ """ | | ##########""""" %/ " | | """""""" #""" % = " """ | | """""""" #"#" ! $ " """" | | #"#" %= ] " """#" | | """" ##"" " z@% " "##"? | | """"" #"" """#? | | """"" " " "" ""##? | | """"" "" ###""" ""#?? | | """" ###" """###"" """"##?? | | #"#" "" #""" """##??? | | """""""" #""" #"" "" = """#???? | | """""""" #""" ""z """" z ""###### | | ##########""" ! #" """ """"#""" | | ?????#####""# #?" "" * " """""""" | | ????##"""#### # #???????" % " "" """ " | | ????# ####??????? "" """" "" | | ????# #??????? "" """ | | ????# #??????? | | ????## #### #??????? "" | | ?????# #??######???????? "" | | ###### ######??????????? """" "" | | """" """"???????????? ??#"" | | ##### "######??????????????"""" | | " " #??????????????"""""""" "" | | " """ #?????????????"#" """""" """ | | """" = " " #???????????? """ """ """""" | | """" """""#????????????""" """""#" | | """"" """" #????????????"" "" """"""" | | " "" "" ""#??????????????""""""" """ | +----------------------------------------------------+ Best States ------------- Heat Dissipation 61 Energy Generation 30 Energy Capacity 505 Matter Stores 300 Matter Capacity 300 Sight Range 16 Terrain Scan Density 10 Armor Coverage 150 Power Shielding 33 Weapon Shielding 66 Melee Speed Boost 20 Evasion (%) 50 Targeting Accuracy 8 Launcher Accuracy 20 Recoil Reduction 3 Offensive Hacking 10 Defensive Hacking 10 Item Schematics ----------------- Arm. Wheel | -8/Materials | Scanalyzed Wheel | -8/Materials | Scanalyzed Hcp. Storage Unit | -8/Materials | Scanalyzed Robot Schematics ------------------ None Fabricated ------------ Nothing Alien Tech Used ----------------- None Achievements -------------- None Challenges ------------ None Game ------ Seed BombInsulationChip Manual? 0 Play Time 01:53:47 Cumulative 40.7 hours Start 2024.04.23 @ 17:42:18 End 2024.04.23 @ 19:49:35 Sessions 3 Manual Loads 0 Difficulty Rogue Special Mode None Game No. 41 Rogue 41 Adventurer 0 Explorer 0 Win Type - Total 0 Types 0/0/0/0/0/0/0/0/0 Lore% 21 Gallery% 28 Achievement% 100 Wizard Run 0 Options --------- Layout 1 ASCII 0 Keyboard 0 Movement Mouse Keybinds 0 Fullscreen 1 Font 24/Smallcaps Map View 50x35 Zoom Use 0% Tactical HUD 1 Map Filters NONE Filters NONE Steam 1 RUN: dfd0cab5-6fe6-4ce7-b5e0-ac8fae1a89aa